[Event "FIDE World Rapid Chess Championship 2021"]
[White "Christiansen, Johan-Sebastian"]
[Black "Samunenkov, Ihor"]
[WhiteFideId "1512668"]
[BlackFideId "14187086"]
[WhiteElo "2522"]
[BlackElo "2259"]
[Result "0-1"]
[Round "10"]
[TimeControl "900+10"]
[Date "2021.12.28"]
[WhiteClock "0:00:13"]
[BlackClock "0:00:33"]

1. c4 {[%clk 0:15:00]}  c5 {[%clk 0:15:00]} 2. Nc3 {[%clk 0:14:52]}  Nc6 {[%clk 0:15:28]} 3. Nf3 {[%clk 0:14:52]}  Nf6 {[%clk 0:15:28]} 4. g3 {[%clk 0:14:52]}  d5 {[%clk 0:15:28]} 5. cxd5 {[%clk 0:14:52]}  Nxd5 {[%clk 0:15:28]} 6. Bg2 {[%clk 0:14:52]}  Nxc3 {[%clk 0:15:28]} 7. bxc3 {[%clk 0:14:52]}  e5 {[%clk 0:15:28]} 8. O-O {[%clk 0:14:52]}  Be7 {[%clk 0:15:28]} 9. Rb1 {[%clk 0:14:52]}  O-O {[%clk 0:10:56]} 10. d3 {[%clk 0:14:58]}  Qc7 {[%clk 0:10:56]} 11. Nd2 {[%clk 0:14:58]}  b6 {[%clk 0:10:56]} 12. Nc4 {[%clk 0:14:58]}  Be6 {[%clk 0:10:56]} 13. Qa4 {[%clk 0:14:58]}  Bd7 {[%clk 0:08:53]} 14. Qc2 {[%clk 0:14:31]}  Rad8 {[%clk 0:08:53]} 15. f4 {[%clk 0:14:31]}  Bf6 {[%clk 0:05:57]} 16. f5 {[%clk 0:14:25]}  Ne7 {[%clk 0:05:57]} 17. g4 {[%clk 0:14:25]}  h6 {[%clk 0:06:06]} 18. Nd2 {[%clk 0:09:31]}  Bg5 {[%clk 0:06:06]} 19. Nc4 {[%clk 0:09:01]}  f6 {[%clk 0:04:17]} 20. e3 {[%clk 0:03:24]}  h5 {[%clk 0:03:12]} 21. e4 {[%clk 0:01:45]}  Bxc1 {[%clk 0:02:27]} 22. Rbxc1 {[%clk 0:01:45]}  hxg4 {[%clk 0:02:27]} 23. Ne3 {[%clk 0:01:45]}  Be8 {[%clk 0:02:27]} 24. Nxg4 {[%clk 0:01:14]}  c4 {[%clk 0:01:05]} 25. d4 {[%clk 0:01:14]}  exd4 {[%clk 0:01:05]} 26. cxd4 {[%clk 0:01:14]}  Rxd4 {[%clk 0:01:05]} 27. Qf2 {[%clk 0:01:14]}  Nc6 {[%clk 0:01:05]} 28. Ne3 {[%clk 0:01:14]}  b5 {[%clk 0:00:36]} 29. Nd5 {[%clk 0:00:49]}  Qe5 {[%clk 0:00:36]} 30. Nf4 {[%clk 0:00:49]}  Bf7 {[%clk 0:00:36]} 31. Rfe1 {[%clk 0:00:48]}  Rfd8 {[%clk 0:00:11]} 32. Nd5 {[%clk 0:00:48]}  Ne7 {[%clk 0:00:11]} 33. Ne3 {[%clk 0:00:48]}  Rd2 {[%clk 0:00:11]} 34. Qh4 {[%clk 0:00:48]}  R8d3 {[%clk 0:00:11]} 35. Ng4 {[%clk 0:00:48]}  Qb2 {[%clk 0:00:11]} 36. Bf1 {[%clk 0:00:48]}  Qd4+ {[%clk 0:00:11]} 37. Kh1 {[%clk 0:00:48]}  Nxf5 {[%clk 0:00:11]} 38. Nxf6+ {[%clk 0:00:48]}  gxf6 {[%clk 0:00:11]} 39. Qg4+ {[%clk 0:00:48]}  Kf8 {[%clk 0:00:11]} 40. Bxd3 {[%clk 0:00:48]}  Rxd3 {[%clk 0:00:11]} 41. Qxf5 {[%clk 0:00:50]}  Rd2 {[%clk 0:00:12]} 42. Rf1 {[%clk 0:00:50]}  Qb2 {[%clk 0:00:12]} 43. Qc8+ {[%clk 0:00:50]}  Be8 {[%clk 0:00:12]} 44. Qc5+ {[%clk 0:00:50]}  Kf7 {[%clk 0:00:12]} 45. Qh5+ {[%clk 0:00:50]}  Ke7 {[%clk 0:00:12]} 46. Qh7+ {[%clk 0:00:50]}  Kd8 {[%clk 0:00:12]} 47. Qh4 {[%clk 0:00:50]}  Kc8 {[%clk 0:00:12]} 48. a4 {[%clk 0:00:50]}  a6 {[%clk 0:00:33]} 49. axb5 {[%clk 0:00:13]}  axb5 {[%clk 0:00:33]} 50. Ra1 {[%clk 0:00:13]}  Bc6 {[%clk 0:00:33]} 51. Ra7 {[%clk 0:00:13]}  Qe5 {[%clk 0:00:33]} 52. Re1 {[%clk 0:00:13]}  f5 {[%clk 0:00:33]} 53. Re7 {[%clk 0:00:13]}  Rxh2+ {[%clk 0:00:33]} 54. Qxh2 {[%clk 0:00:13]}  Qxe7 {[%clk 0:00:33]} 55. Kg1 {[%clk 0:00:13]}  Bxe4 {[%clk 0:00:33]} 56. Qf4 {[%clk 0:00:13]}  c3 {[%clk 0:00:33]} 57. Qe3 {[%clk 0:00:13]}  Qg7+ {[%clk 0:00:33]} 0-1


[Site "http://www.Chess.com"]

[Event "FIDE World Rapid Chess Championship 2021"]
[White "Erigaisi, Arjun"]
[Black "Mamedov, Rauf"]
[WhiteFideId "35009192"]
[BlackFideId "13401653"]
[WhiteElo "2397"]
[BlackElo "2690"]
[Result "0-1"]
[Round "10"]
[TimeControl "900+10"]
[Date "2021.12.28"]
[WhiteClock "0:00:20"]
[BlackClock "0:00:51"]

1. d4 {[%clk 0:15:45]}  d5 {[%clk 0:15:41]} 2. c4 {[%clk 0:15:45]}  e6 {[%clk 0:15:41]} 3. Nf3 {[%clk 0:15:45]}  Nf6 {[%clk 0:15:41]} 4. g3 {[%clk 0:15:45]}  c5 {[%clk 0:15:41]} 5. cxd5 {[%clk 0:15:45]}  exd5 {[%clk 0:15:41]} 6. Bg2 {[%clk 0:15:45]}  Nc6 {[%clk 0:15:41]} 7. O-O {[%clk 0:15:45]}  Be7 {[%clk 0:15:41]} 8. Nc3 {[%clk 0:15:45]}  O-O {[%clk 0:15:41]} 9. Bg5 {[%clk 0:15:45]}  c4 {[%clk 0:15:41]} 10. Ne5 {[%clk 0:12:29]}  Be6 {[%clk 0:15:35]} 11. f4 {[%clk 0:12:29]}  Ng4 {[%clk 0:15:35]} 12. Bxe7 {[%clk 0:12:29]}  Nxe7 {[%clk 0:15:35]} 13. Qd2 {[%clk 0:10:21]}  Nxe5 {[%clk 0:15:51]} 14. fxe5 {[%clk 0:10:21]}  Rb8 {[%clk 0:14:00]} 15. a4 {[%clk 0:10:00]}  a6 {[%clk 0:14:00]} 16. e4 {[%clk 0:10:00]}  b5 {[%clk 0:14:00]} 17. axb5 {[%clk 0:08:21]}  axb5 {[%clk 0:14:00]} 18. exd5 {[%clk 0:08:21]}  Nxd5 {[%clk 0:12:06]} 19. Ne4 {[%clk 0:06:31]}  b4 {[%clk 0:12:06]} 20. Rac1 {[%clk 0:06:31]}  Rc8 {[%clk 0:11:21]} 21. Rf2 {[%clk 0:05:49]}  Qa5 {[%clk 0:09:46]} 22. Ng5 {[%clk 0:05:26]}  c3 {[%clk 0:07:23]} 23. Qd3 {[%clk 0:04:19]}  g6 {[%clk 0:07:23]} 24. b3 {[%clk 0:04:19]}  Qa3 {[%clk 0:05:00]} 25. Rb1 {[%clk 0:03:20]}  Qa7 {[%clk 0:05:00]} 26. Rc1 {[%clk 0:02:14]}  Qa3 {[%clk 0:04:22]} 27. Rb1 {[%clk 0:02:14]}  Qa7 {[%clk 0:04:22]} 28. Rc1 {[%clk 0:02:14]}  Rfd8 {[%clk 0:02:06]} 29. g4 {[%clk 0:01:43]}  Qe7 {[%clk 0:02:06]} 30. Ne4 {[%clk 0:01:43]}  Bxg4 {[%clk 0:02:06]} 31. Qg3 {[%clk 0:00:41]}  Be6 {[%clk 0:02:05]} 32. Ng5 {[%clk 0:00:41]}  c2 {[%clk 0:02:05]} 33. Ne4 {[%clk 0:00:20]}  Qa7 {[%clk 0:00:51]} 34. Nc5 {[%clk 0:00:20]}  Nc3 {[%clk 0:00:51]} 35. Qe3 {[%clk 0:00:20]}  Nd1 {[%clk 0:00:51]} 0-1


[Site "http://www.Chess.com"]

[Event "FIDE World Rapid Chess Championship 2021"]
[White "Smirin, Ilia"]
[Black "Tang, Andrew"]
[WhiteFideId "2801990"]
[BlackFideId "2059630"]
[WhiteElo "2663"]
[BlackElo "2427"]
[Result "1-0"]
[Round "10"]
[TimeControl "900+10"]
[Date "2021.12.28"]
[WhiteClock "0:03:51"]
[BlackClock "0:00:13"]

1. e4 {[%clk 0:15:00]}  e5 {[%clk 0:15:00]} 2. Nf3 {[%clk 0:15:00]}  Nc6 {[%clk 0:15:00]} 3. Bb5 {[%clk 0:15:00]}  a6 {[%clk 0:15:00]} 4. Ba4 {[%clk 0:15:17]}  Nf6 {[%clk 0:16:23]} 5. O-O {[%clk 0:15:17]}  Be7 {[%clk 0:16:23]} 6. Re1 {[%clk 0:15:17]}  b5 {[%clk 0:16:23]} 7. Bb3 {[%clk 0:15:17]}  O-O {[%clk 0:16:23]} 8. d3 {[%clk 0:15:17]}  d6 {[%clk 0:16:23]} 9. c3 {[%clk 0:15:17]}  Na5 {[%clk 0:16:23]} 10. Bc2 {[%clk 0:15:17]}  c5 {[%clk 0:16:23]} 11. Nbd2 {[%clk 0:15:17]}  Re8 {[%clk 0:16:23]} 12. Nf1 {[%clk 0:15:17]}  g6 {[%clk 0:16:23]} 13. d4 {[%clk 0:15:17]}  cxd4 {[%clk 0:16:23]} 14. cxd4 {[%clk 0:15:17]}  exd4 {[%clk 0:16:23]} 15. Nxd4 {[%clk 0:15:17]}  Bf8 {[%clk 0:16:23]} 16. b3 {[%clk 0:15:17]}  Bb7 {[%clk 0:16:23]} 17. Ng3 {[%clk 0:15:17]}  Bg7 {[%clk 0:12:02]} 18. Bb2 {[%clk 0:15:25]}  Qb6 {[%clk 0:08:54]} 19. Qd2 {[%clk 0:15:25]}  d5 {[%clk 0:08:54]} 20. Ndf5 {[%clk 0:13:05]}  gxf5 {[%clk 0:03:28]} 21. Nxf5 {[%clk 0:12:26]}  Nh5 {[%clk 0:03:28]} 22. Nxg7 {[%clk 0:12:26]}  Nxg7 {[%clk 0:03:28]} 23. exd5 {[%clk 0:12:26]}  Qd6 {[%clk 0:03:29]} 24. Qg5 {[%clk 0:10:59]}  Qf8 {[%clk 0:03:29]} 25. Bf6 {[%clk 0:10:59]}  Rac8 {[%clk 0:02:36]} 26. Rxe8 {[%clk 0:09:30]}  Rxe8 {[%clk 0:01:09]} 27. Qh6 {[%clk 0:09:30]}  Nf5 {[%clk 0:01:09]} 28. Qh5 {[%clk 0:05:25]}  Qh6 {[%clk 0:01:11]} 29. Qxf5 {[%clk 0:05:25]}  Bxd5 {[%clk 0:01:11]} 30. Bc3 {[%clk 0:03:51]}  Be6 {[%clk 0:00:13]} 31. Qe5 {[%clk 0:03:51]}  f6 {[%clk 0:00:13]} 32. Qg3+ {[%clk 0:03:51]} 1-0


[Site "http://www.Chess.com"]

[Event "FIDE World Rapid Chess Championship 2021"]
[White "Jumabayev, Rinat"]
[Black "Cuenca Jimenez, Jose Fernando"]
[WhiteFideId "13702661"]
[BlackFideId "2255570"]
[WhiteElo "2562"]
[BlackElo "2421"]
[Result "1/2-1/2"]
[Round "10"]
[TimeControl "900+10"]
[Date "2021.12.28"]
[WhiteClock "0:00:52"]
[BlackClock "0:00:24"]

1. e4 {[%clk 0:15:00]}  e5 {[%clk 0:15:00]} 2. Nf3 {[%clk 0:15:00]}  Nc6 {[%clk 0:15:00]} 3. Bc4 {[%clk 0:15:00]}  Bc5 {[%clk 0:15:05]} 4. c3 {[%clk 0:16:15]}  Nf6 {[%clk 0:15:05]} 5. d3 {[%clk 0:16:15]}  d6 {[%clk 0:15:05]} 6. O-O {[%clk 0:16:15]}  a5 {[%clk 0:15:05]} 7. Nbd2 {[%clk 0:16:15]}  O-O {[%clk 0:15:05]} 8. h3 {[%clk 0:16:15]}  h6 {[%clk 0:15:05]} 9. Re1 {[%clk 0:16:15]}  Be6 {[%clk 0:15:05]} 10. Bb5 {[%clk 0:16:15]}  Qb8 {[%clk 0:15:05]} 11. Nf1 {[%clk 0:16:15]}  Qa7 {[%clk 0:15:05]} 12. Be3 {[%clk 0:16:15]}  Bxe3 {[%clk 0:15:05]} 13. Nxe3 {[%clk 0:16:15]}  Ne7 {[%clk 0:15:05]} 14. Nh4 {[%clk 0:15:03]}  Qb6 {[%clk 0:15:20]} 15. a4 {[%clk 0:13:19]}  c6 {[%clk 0:12:48]} 16. Bc4 {[%clk 0:13:19]}  Qxb2 {[%clk 0:12:46]} 17. Rb1 {[%clk 0:13:19]}  Qxc3 {[%clk 0:12:46]} 18. Bxe6 {[%clk 0:13:12]}  fxe6 {[%clk 0:12:14]} 19. Rxb7 {[%clk 0:13:12]}  Rf7 {[%clk 0:12:15]} 20. Qb1 {[%clk 0:10:29]}  d5 {[%clk 0:12:15]} 21. Rc1 {[%clk 0:10:25]}  Qa3 {[%clk 0:06:32]} 22. Nf3 {[%clk 0:10:25]}  Qd6 {[%clk 0:06:32]} 23. Qb2 {[%clk 0:10:25]}  Nd7 {[%clk 0:05:49]} 24. Rxd7 {[%clk 0:08:49]}  Qxd7 {[%clk 0:05:49]} 25. Nxe5 {[%clk 0:08:49]}  Qc7 {[%clk 0:04:51]} 26. Nxf7 {[%clk 0:08:05]}  Kxf7 {[%clk 0:04:51]} 27. Rb1 {[%clk 0:08:05]}  Ra7 {[%clk 0:04:51]} 28. g3 {[%clk 0:06:27]}  Kg8 {[%clk 0:02:30]} 29. Kg2 {[%clk 0:06:27]}  Kh7 {[%clk 0:02:30]} 30. h4 {[%clk 0:06:27]}  Nc8 {[%clk 0:00:52]} 31. Ng4 {[%clk 0:05:55]}  Nd6 {[%clk 0:00:52]} 32. Qe5 {[%clk 0:05:55]}  Qe7 {[%clk 0:00:52]} 33. Rb6 {[%clk 0:04:04]}  Qc7 {[%clk 0:00:34]} 34. Rb3 {[%clk 0:04:04]}  Qe7 {[%clk 0:00:34]} 35. Qc3 {[%clk 0:00:38]}  Qc7 {[%clk 0:00:47]} 36. Qe5 {[%clk 0:00:38]}  Qe7 {[%clk 0:00:47]} 37. Ne3 {[%clk 0:00:38]}  Qd7 {[%clk 0:00:47]} 38. h5 {[%clk 0:00:38]}  Rb7 {[%clk 0:00:47]} 39. Rxb7 {[%clk 0:00:38]}  Nxb7 {[%clk 0:00:47]} 40. Ng4 {[%clk 0:00:38]}  Qd6 {[%clk 0:00:47]} 41. Qb2 {[%clk 0:00:38]}  Qb4 {[%clk 0:00:15]} 42. Qc2 {[%clk 0:00:36]}  Qc5 {[%clk 0:00:15]} 43. Qe2 {[%clk 0:00:36]}  Qd4 {[%clk 0:00:15]} 44. exd5 {[%clk 0:00:36]}  Qxd5+ {[%clk 0:00:15]} 45. Kg1 {[%clk 0:00:36]}  Nc5 {[%clk 0:00:15]} 46. Ne5 {[%clk 0:00:36]}  Nxa4 {[%clk 0:00:15]} 47. d4 {[%clk 0:00:36]}  Qxd4 {[%clk 0:00:15]} 48. Qc2+ {[%clk 0:00:36]}  Kg8 {[%clk 0:00:24]} 49. Nxc6 {[%clk 0:00:52]}  Qg4 {[%clk 0:00:24]} 50. Nxa5 {[%clk 0:00:52]}  Nb6 {[%clk 0:00:24]} 51. Nc6 {[%clk 0:00:52]}  Nd5 {[%clk 0:00:24]} 52. Ne5 {[%clk 0:00:52]}  Qxh5 {[%clk 0:00:24]} 53. Qc8+ {[%clk 0:00:52]}  Kh7 {[%clk 0:00:24]} 54. Qxe6 {[%clk 0:00:52]}  Nf6 {[%clk 0:00:24]} 55. Qd6 {[%clk 0:00:52]}  Qf5 {[%clk 0:00:24]} 56. Qd4 {[%clk 0:00:52]}  Qb1+ {[%clk 0:00:24]} 57. Kh2 {[%clk 0:00:52]}  Qf5 {[%clk 0:00:24]} 58. Nd3 {[%clk 0:00:52]}  Qf3 {[%clk 0:00:24]} 59. Kg1 {[%clk 0:00:52]}  Qf5 {[%clk 0:00:24]} 60. Qe3 {[%clk 0:00:52]}  Ng4 {[%clk 0:00:24]} 61. Qe2 {[%clk 0:00:52]}  Nf6 {[%clk 0:00:24]} 1/2-1/2


[Site "http://www.Chess.com"]

[Event "FIDE World Rapid Chess Championship 2021"]
[White "Kobalia, Mikhail"]
[Black "Saraci, Nderim"]
[WhiteFideId "4119150"]
[BlackFideId "6351921"]
[WhiteElo "2543"]
[BlackElo "2414"]
[Result "1/2-1/2"]
[Round "10"]
[TimeControl "900+10"]
[Date "2021.12.28"]
[WhiteClock "0:00:00"]
[BlackClock "0:00:00"]

1. e4 {[%clk 0:15:00]}  e5 {[%clk 0:15:00]} 2. Nf3 {[%clk 0:15:00]}  Nc6 {[%clk 0:15:00]} 3. Bb5 {[%clk 0:15:00]}  a6 {[%clk 0:15:00]} 4. Ba4 {[%clk 0:15:00]}  g6 {[%clk 0:15:00]} 5. c3 {[%clk 0:12:56]}  d6 {[%clk 0:15:30]} 6. Bxc6+ {[%clk 0:12:56]}  bxc6 {[%clk 0:15:30]} 7. d4 {[%clk 0:12:56]}  f6 {[%clk 0:15:38]} 8. O-O {[%clk 0:09:44]}  Bg7 {[%clk 0:15:38]} 9. c4 {[%clk 0:11:22]}  Nh6 {[%clk 0:08:34]} 10. c5 {[%clk 0:11:34]}  Nf7 {[%clk 0:08:34]} 11. cxd6 {[%clk 0:11:34]}  cxd6 {[%clk 0:08:34]} 12. Qc2 {[%clk 0:11:34]}  Bd7 {[%clk 0:08:34]} 13. Be3 {[%clk 0:10:33]}  O-O {[%clk 0:07:57]} 14. Nbd2 {[%clk 0:10:33]}  d5 {[%clk 0:07:57]} 15. dxe5 {[%clk 0:10:33]}  fxe5 {[%clk 0:07:57]} 16. Bc5 {[%clk 0:10:33]}  Re8 {[%clk 0:07:57]} 17. Rfe1 {[%clk 0:10:33]}  Be6 {[%clk 0:06:40]} 18. Qa4 {[%clk 0:10:05]}  Qc8 {[%clk 0:06:40]} 19. Rac1 {[%clk 0:10:05]}  Qb7 {[%clk 0:06:40]} 20. Ba3 {[%clk 0:10:05]}  Qb5 {[%clk 0:06:40]} 21. Qd1 {[%clk 0:09:22]}  d4 {[%clk 0:05:30]} 22. b3 {[%clk 0:08:30]}  a5 {[%clk 0:02:40]} 23. Rc5 {[%clk 0:06:24]}  Qb7 {[%clk 0:02:40]} 24. Nc4 {[%clk 0:06:24]}  Bf8 {[%clk 0:02:40]} 25. Rxa5 {[%clk 0:05:10]}  Bxa3 {[%clk 0:01:51]} 26. Rxa3 {[%clk 0:05:10]}  Bxc4 {[%clk 0:01:51]} 27. Rxa8 {[%clk 0:05:10]}  Rxa8 {[%clk 0:01:51]} 28. bxc4 {[%clk 0:05:10]}  Rxa2 {[%clk 0:01:51]} 29. h3 {[%clk 0:05:10]}  Qb2 {[%clk 0:00:34]} 30. Rf1 {[%clk 0:04:26]}  Qc2 {[%clk 0:00:34]} 31. Qe1 {[%clk 0:04:26]}  Qxc4 {[%clk 0:00:34]} 32. Qb1 {[%clk 0:04:26]}  Ra8 {[%clk 0:00:34]} 33. Qb7 {[%clk 0:04:26]}  Re8 {[%clk 0:00:34]} 34. Ra1 {[%clk 0:04:26]}  Qe6 {[%clk 0:00:34]} 35. Ra7 {[%clk 0:03:51]}  Qf6 {[%clk 0:00:01]} 36. Ra6 {[%clk 0:03:51]}  Ng5 {[%clk 0:00:01]} 37. Nxg5 {[%clk 0:03:51]}  Qxg5 {[%clk 0:00:01]} 38. Qxc6 {[%clk 0:03:51]}  Rf8 {[%clk 0:00:00]} 39. g3 {[%clk 0:00:00]}  Rxf2 {[%clk 0:00:00]} 40. Kxf2 {[%clk 0:00:00]}  Qd2+ {[%clk 0:00:00]} 41. Kf3 {[%clk 0:00:00]}  Qd1+ {[%clk 0:00:00]} 42. Kf2 {[%clk 0:00:00]}  Qd2+ {[%clk 0:00:00]} 1/2-1/2


[Site "http://www.Chess.com"]

[Event "FIDE World Rapid Chess Championship 2021"]
[White "Gagunashvili, Merab"]
[Black "Bellahcene, Bilel"]
[WhiteFideId "13601652"]
[BlackFideId "696358"]
[WhiteElo "2538"]
[BlackElo "2397"]
[Result "1/2-1/2"]
[Round "10"]
[TimeControl "900+10"]
[Date "2021.12.28"]
[WhiteClock "0:01:28"]
[BlackClock "0:03:03"]

1. d4 {[%clk 0:15:00]}  Nf6 {[%clk 0:15:00]} 2. c4 {[%clk 0:15:00]}  e6 {[%clk 0:15:00]} 3. Nc3 {[%clk 0:15:00]}  Bb4 {[%clk 0:15:00]} 4. Qc2 {[%clk 0:15:00]}  c5 {[%clk 0:14:24]} 5. dxc5 {[%clk 0:15:39]}  Bxc5 {[%clk 0:14:24]} 6. Nf3 {[%clk 0:15:39]}  b6 {[%clk 0:14:24]} 7. Bf4 {[%clk 0:15:39]}  Bb7 {[%clk 0:14:24]} 8. Rd1 {[%clk 0:15:39]}  Nc6 {[%clk 0:14:24]} 9. e3 {[%clk 0:15:39]}  h6 {[%clk 0:14:24]} 10. Be2 {[%clk 0:15:39]}  Nh5 {[%clk 0:13:17]} 11. Bd6 {[%clk 0:14:40]}  Bxd6 {[%clk 0:13:17]} 12. Rxd6 {[%clk 0:14:40]}  Qe7 {[%clk 0:13:17]} 13. Rd2 {[%clk 0:14:40]}  O-O {[%clk 0:13:17]} 14. O-O {[%clk 0:14:40]}  Nf6 {[%clk 0:13:17]} 15. Rfd1 {[%clk 0:13:27]}  Rfd8 {[%clk 0:12:49]} 16. h3 {[%clk 0:13:27]}  d6 {[%clk 0:12:49]} 17. a3 {[%clk 0:13:27]}  Rac8 {[%clk 0:11:50]} 18. b4 {[%clk 0:11:46]}  Ne5 {[%clk 0:11:50]} 19. Nxe5 {[%clk 0:11:46]}  dxe5 {[%clk 0:11:50]} 20. Nb5 {[%clk 0:11:30]}  Rxd2 {[%clk 0:10:05]} 21. Qxd2 {[%clk 0:11:30]}  Bc6 {[%clk 0:10:05]} 22. Nc3 {[%clk 0:08:52]}  Kf8 {[%clk 0:10:21]} 23. Qb2 {[%clk 0:08:52]}  Rd8 {[%clk 0:10:21]} 24. Rxd8+ {[%clk 0:08:52]}  Qxd8 {[%clk 0:10:21]} 25. Qc2 {[%clk 0:07:11]}  Qd6 {[%clk 0:09:56]} 26. Qd3 {[%clk 0:07:11]}  Ke7 {[%clk 0:09:56]} 27. Kf1 {[%clk 0:07:11]}  a5 {[%clk 0:09:56]} 28. Qxd6+ {[%clk 0:06:27]}  Kxd6 {[%clk 0:08:55]} 29. h4 {[%clk 0:06:27]}  axb4 {[%clk 0:08:55]} 30. axb4 {[%clk 0:06:27]}  g5 {[%clk 0:08:55]} 31. hxg5 {[%clk 0:06:27]}  hxg5 {[%clk 0:08:55]} 32. g3 {[%clk 0:06:27]}  Ne4 {[%clk 0:08:29]} 33. Nxe4+ {[%clk 0:05:33]}  Bxe4 {[%clk 0:08:29]} 34. Ke1 {[%clk 0:05:33]}  Bc6 {[%clk 0:08:29]} 35. Kd2 {[%clk 0:05:33]}  f6 {[%clk 0:08:29]} 36. Kc3 {[%clk 0:05:33]}  Bd7 {[%clk 0:08:29]} 37. Bf3 {[%clk 0:05:33]}  Be8 {[%clk 0:08:29]} 38. Be2 {[%clk 0:05:33]}  Bd7 {[%clk 0:08:29]} 39. Bf1 {[%clk 0:05:33]}  Bc6 {[%clk 0:08:29]} 40. b5 {[%clk 0:05:33]}  Bf3 {[%clk 0:08:19]} 41. Kb4 {[%clk 0:04:49]}  f5 {[%clk 0:05:33]} 42. Bd3 {[%clk 0:05:06]}  Bb7 {[%clk 0:05:33]} 43. c5+ {[%clk 0:05:06]}  bxc5+ {[%clk 0:05:33]} 44. Ka5 {[%clk 0:05:06]}  Bd5 {[%clk 0:05:03]} 45. b6 {[%clk 0:03:17]}  c4 {[%clk 0:05:03]} 46. Bc2 {[%clk 0:03:50]}  Bb7 {[%clk 0:02:52]} 47. Kb5 {[%clk 0:01:28]}  c3 {[%clk 0:03:03]} 48. Bb3 {[%clk 0:01:28]}  f4 {[%clk 0:03:03]} 49. Kb4 {[%clk 0:01:28]}  fxe3 {[%clk 0:03:03]} 50. fxe3 {[%clk 0:01:28]}  Kc6 {[%clk 0:03:03]} 51. Kxc3 {[%clk 0:01:28]}  Kxb6 {[%clk 0:03:03]} 1/2-1/2


[Site "http://www.Chess.com"]

[Event "FIDE World Rapid Chess Championship 2021"]
[White "Thybo, Jesper Sondergaard"]
[Black "Durarbayli, Vasif"]
[WhiteFideId "1438832"]
[BlackFideId "13402935"]
[WhiteElo "2401"]
[BlackElo "2532"]
[Result "0-1"]
[Round "10"]
[TimeControl "900+10"]
[Date "2021.12.28"]
[WhiteClock "0:00:38"]
[BlackClock "0:00:48"]

1. d4 {[%clk 0:15:00]}  Nf6 {[%clk 0:15:00]} 2. Nf3 {[%clk 0:15:00]}  e6 {[%clk 0:15:00]} 3. Bf4 {[%clk 0:15:00]}  d5 {[%clk 0:15:00]} 4. e3 {[%clk 0:14:07]}  Bd6 {[%clk 0:16:06]} 5. Bg3 {[%clk 0:14:07]}  c5 {[%clk 0:16:06]} 6. c3 {[%clk 0:14:07]}  O-O {[%clk 0:16:06]} 7. Nbd2 {[%clk 0:14:07]}  Nc6 {[%clk 0:16:06]} 8. Bd3 {[%clk 0:14:07]}  b6 {[%clk 0:16:06]} 9. Ne5 {[%clk 0:14:07]}  Bb7 {[%clk 0:16:06]} 10. O-O {[%clk 0:14:07]}  Qc7 {[%clk 0:14:25]} 11. f4 {[%clk 0:13:44]}  Ne7 {[%clk 0:14:25]} 12. Qb1 {[%clk 0:13:44]}  g6 {[%clk 0:10:45]} 13. Bh4 {[%clk 0:11:51]}  Ne8 {[%clk 0:10:45]} 14. g4 {[%clk 0:11:51]}  f6 {[%clk 0:10:00]} 15. Nef3 {[%clk 0:10:03]}  Ng7 {[%clk 0:10:00]} 16. Bg3 {[%clk 0:10:03]}  Rae8 {[%clk 0:08:25]} 17. Qe1 {[%clk 0:07:41]}  Nc6 {[%clk 0:07:01]} 18. g5 {[%clk 0:07:41]}  fxg5 {[%clk 0:05:26]} 19. Nxg5 {[%clk 0:06:54]}  cxd4 {[%clk 0:05:26]} 20. cxd4 {[%clk 0:06:54]}  Nb4 {[%clk 0:05:26]} 21. Rc1 {[%clk 0:06:54]}  Qd7 {[%clk 0:05:26]} 22. Be2 {[%clk 0:04:53]}  Nxa2 {[%clk 0:05:13]} 23. Ra1 {[%clk 0:04:53]}  Nb4 {[%clk 0:05:13]} 24. Rxa7 {[%clk 0:04:53]}  Ra8 {[%clk 0:05:13]} 25. Rxa8 {[%clk 0:04:53]}  Rxa8 {[%clk 0:05:13]} 26. Ndf3 {[%clk 0:04:53]}  Nf5 {[%clk 0:05:13]} 27. Ne5 {[%clk 0:04:47]}  Qe7 {[%clk 0:04:06]} 28. Qd2 {[%clk 0:03:30]}  Rc8 {[%clk 0:03:18]} 29. Rc1 {[%clk 0:03:30]}  Rxc1+ {[%clk 0:03:18]} 30. Qxc1 {[%clk 0:03:30]}  Bxe5 {[%clk 0:03:18]} 31. dxe5 {[%clk 0:03:30]}  h6 {[%clk 0:03:18]} 32. Nf3 {[%clk 0:01:35]}  Qc5 {[%clk 0:02:06]} 33. Qxc5 {[%clk 0:01:35]}  bxc5 {[%clk 0:02:06]} 34. Bf2 {[%clk 0:01:35]}  Ba6 {[%clk 0:02:06]} 35. Bxa6 {[%clk 0:01:35]}  Nxa6 {[%clk 0:02:06]} 36. Nd2 {[%clk 0:01:35]}  Kf7 {[%clk 0:02:06]} 37. Kf1 {[%clk 0:01:35]}  g5 {[%clk 0:00:48]} 38. h3 {[%clk 0:00:38]}  gxf4 {[%clk 0:00:48]} 39. exf4 {[%clk 0:00:38]}  c4 {[%clk 0:00:48]} 40. Ke2 {[%clk 0:00:38]}  Nb4 {[%clk 0:00:48]} 41. Bb6 {[%clk 0:00:38]}  Nd3 {[%clk 0:00:48]} 0-1


[Site "http://www.Chess.com"]